[Event "Asian Amateur Rapid 2024"]
[Site "Al Ain"]
[Date "2024.12.15"]
[Round "2.42"]
[White "Mohammed Hamad Alkhemeiri"]
[Black "Amrit Adhikari"]
[Result "1-0"]
[ECO "C55"]
[WhiteElo "1482"]
[BlackElo "1602"]
[Annotator "NA RC"]
[PlyCount "83"]
[EventDate "2024.12.15"]
[EventType "swiss"]
[EventCountry "UAE"]
[SourceTitle "playchess.com"]
[Source "ChessBase"]
[SourceQuality "1"]
[TimeControl "900+10"]

1. e4 {[%emt 0:00:02]} e5 {[%emt 0:00:03]} 2. Nf3 {[%emt 0:00:05]} Nc6 {[%emt 0:00:04]} 3. Bc4 {[%emt 0:00:03]} Nf6 {[%emt 0:00:02]} 4. d3 {[%emt 0:00:19]} Be7 {[%emt 0:00:09]} 5. Nc3 {[%emt 0:00:42]} d6 {[%emt 0:00:07]} 6. h3 {[%emt 0:00:16]} Na5 {[%emt 0:00:13]} 7. Bb3 {[%emt 0:01:28]} Nxb3 {[%emt 0:00:04]} 8. axb3 {[%emt 0:00:02]} O-O {[%emt 0:00:02]} 9. Be3 {[%emt 0:00:04]} Be6 {[%emt 0:00:31]} 10. O-O {[%emt 0:01:25]} Nd7 {[%emt 0:00:10]} 11. d4 {[%emt 0:00:32]} f5 {[%emt 0:00:13]} 12. dxe5 {[%emt 0:01:43]} dxe5 {[%emt 0:00:11]} 13. exf5 {[%emt 0:03:10]} Bxf5 {[%emt 0:00:04]} 14. Qd5+ {[%emt 0:00:35]} Kh8 {[%emt 0:00:01]} 15. Nxe5 {[%emt 0:00:30]} Nxe5 {[%emt 0:00:14]} 16. Qxe5 {[%emt 0:00:02]} Bd6 {[%emt 0:00:12]} 17. Qd4 {[%emt 0:00:23]} b6 {[%emt 0:00:12]} 18. Nb5 {[%emt 0:00:43]} a5 {[%emt 0:00:27]} 19. Nxd6 {[%emt 0:00:22]} Qxd6 {[%emt 0:00:02]} 20. Qxd6 {[%emt 0:00:21]} cxd6 {[%emt 0:00:02]} 21. Bxb6 {[%emt 0:00:05]} Bxc2 {[%emt 0:00:04]} 22. Rxa5 {[%emt 0:00:16]} Rxa5 {[%emt 0:00:18]} 23. Bxa5 {[%emt 0:00:02]} Bxb3 {[%emt 0:00:02]} 24. Re1 {[%emt 0:00:44]} d5 {[%emt 0:00:08]} 25. Re3 {[%emt 0:00:38]} Ba4 {[%emt 0:00:27]} 26. Ra3 {[%emt 0:00:41]} Bb5 {[%emt 0:00:14]} 27. Bc3 {[%emt 0:00:21]} Rd8 {[%emt 0:00:11]} 28. Bd4 {[%emt 0:00:08]} h6 {[%emt 0:00:35]} 29. Ra7 {[%emt 0:00:11]} Rg8 {[%emt 0:00:02]} 30. Rb7 {[%emt 0:00:04]} Bc6 {[%emt 0:00:07]} 31. Rc7 {[%emt 0:00:04]} Ba8 {[%emt 0:00:08]} 32. b4 {[%emt 0:00:06]} Kh7 {[%emt 0:00:04]} 33. b5 {[%emt 0:00:14]} Kg6 {[%emt 0:00:11]} 34. b6 {[%emt 0:00:35]} Rb8 {[%emt 0:00:09]} 35. Rxg7+ {[%emt 0:00:06]} Kh5 {[%emt 0:00:04]} 36. g4+ {[%emt 0:00:06]} Kh4 {[%emt 0:00:01]} 37. Kh2 {[%emt 0:00:12]} Rf8 {[%emt 0:01:30]} 38. Rg6 {[%emt 0:00:45]} Rf3 {[%emt 0:00:20]} 39. Bf6+ {[%emt 0:00:04]} Rxf6 {[%emt 0:00:08]} 40. Rxf6 {[%emt 0:00:02]} Kg5 {[%emt 0:00:01]} 41. Rf7 {[%emt 0:00:10]} Kg6 {[%emt 0:00:09]} 42. b7 {[%emt 0:00:01]} 1-0

[Event "Asian Amateur Rapid 2024"]
[Site "Al Ain"]
[Date "2024.12.15"]
[Round "2.43"]
[White "KHALID ALHAWAY"]
[Black "Sinno, Abdul Salam"]
[Result "0-1"]
[ECO "B40"]
[WhiteElo "1529"]
[BlackElo "1527"]
[Annotator "NA RC"]
[PlyCount "70"]
[EventDate "2024.12.15"]
[EventType "swiss"]
[EventCountry "UAE"]
[SourceTitle "playchess.com"]
[Source "ChessBase"]
[SourceQuality "1"]
[TimeControl "900+10"]

1. e4 c5 {[%emt 0:00:03]} 2. Nf3 {[%emt 0:00:19]} e6 {[%emt 0:00:02]} 3. d3 {[%emt 0:00:17]} Qc7 {[%emt 0:00:09]} 4. g3 {[%emt 0:00:23]} h5 {[%emt 0:00:06]} 5. Nc3 {[%emt 0:00:21]} a6 {[%emt 0:00:02]} 6. Bf4 {[%emt 0:00:08]} d6 {[%emt 0:00:11]} 7. e5 {[%emt 0:00:48]} d5 {[%emt 0:00:04]} 8. d4 {[%emt 0:00:02]} cxd4 {[%emt 0:00:26]} 9. Qxd4 {[%emt 0:00:02]} Nc6 {[%emt 0:00:29]} 10. Qa4 {[%emt 0:00:27]} Bb4 {[%emt 0:00:14]} 11. Qb3 {[%emt 0:00:59]} d4 {[%emt 0:00:54]} 12. O-O-O {[%emt 0:01:18]} dxc3 {[%emt 0:00:17]} 13. bxc3 {[%emt 0:00:02]} Bc5 {[%emt 0:00:20]} 14. Rd2 {[%emt 0:01:40]} b5 {[%emt 0:00:17]} 15. c4 {[%emt 0:00:16]} Na5 {[%emt 0:00:24]} 16. Qd3 {[%emt 0:00:57]} bxc4 {[%emt 0:00:07]} 17. Qc3 {[%emt 0:00:37]} Bb7 {[%emt 0:00:12]} 18. Bg2 {[%emt 0:00:13]} Ne7 {[%emt 0:00:29]} 19. Kd1 {[%emt 0:00:51]} Nd5 {[%emt 0:00:10]} 20. Qa1 {[%emt 0:00:38]} Bb4 {[%emt 0:00:18]} 21. Rxd5 {[%emt 0:00:38]} Bxd5 {[%emt 0:00:09]} 22. Qb1 {[%emt 0:00:14]} Rb8 {[%emt 0:00:19]} 23. Ke2 {[%emt 0:00:28]} Bc3 {[%emt 0:00:12]} 24. Qd1 {[%emt 0:00:24]} Rd8 {[%emt 0:00:35]} 25. Kf1 {[%emt 0:00:31]} Qb6 {[%emt 0:01:08]} 26. Nd2 {[%emt 0:01:24]} Bxg2+ {[%emt 0:00:34]} 27. Kxg2 {[%emt 0:00:02]} Bxd2 {[%emt 0:00:38]} 28. Bxd2 {[%emt 0:00:33]} c3 {[%emt 0:00:07]} 29. Be3 {[%emt 0:00:26]} Qc6+ {[%emt 0:00:05]} 30. Qf3 {[%emt 0:00:02]} Qxf3+ {[%emt 0:00:09]} 31. Kxf3 {[%emt 0:00:01]} Nc6 {[%emt 0:00:24]} 32. Bb6 {[%emt 0:00:25]} Rd5 {[%emt 0:00:21]} 33. Bc7 {[%emt 0:00:12]} Nxe5+ {[%emt 0:00:06]} 34. Ke4 {[%emt 0:00:11]} Ng4 {[%emt 0:00:08]} 35. f3 {[%emt 0:00:32]} Nf2+ {[%emt 0:00:02]} 0-1

[Event "Asian Amateur Rapid 2024"]
[Site "Al Ain"]
[Date "2024.12.15"]
[Round "3.1"]
[White "Bigabylov, Zhuban"]
[Black "Vivaan Sachdev"]
[Result "0-1"]
[ECO "D85"]
[WhiteElo "1907"]
[BlackElo "1824"]
[Annotator "RC"]
[PlyCount "114"]
[EventDate "2024.12.15"]
[EventType "swiss"]
[EventCountry "UAE"]
[SourceTitle "playchess.com"]
[Source "ChessBase"]
[SourceQuality "1"]
[TimeControl "900+10"]

1. d4 {[%emt 0:15:20]} Nf6 {[%emt 0:00:34]} 2. c4 {[%emt 0:00:00]} g6 {[%emt 0:00:03]} 3. Nc3 {[%emt 0:00:00]} d5 {[%emt 0:00:03]} 4. cxd5 {[%emt 0:00:00]} Nxd5 {[%emt 0:00:02]} 5. e4 {[%emt 0:00:00]} Nxc3 {[%emt 0:00:02]} 6. bxc3 {[%emt 0:00:00]} Bg7 {[%emt 0:00:04]} 7. Nf3 {[%emt 0:00:00]} c5 {[%emt 0:00:02]} 8. Rb1 {[%emt 0:00:00]} Qa5 {[%emt 0:01:01]} 9. Rb5 {[%emt 0:00:00]} Qxc3+ {[%emt 0:00:24]} 10. Bd2 {[%emt 0:00:00]} Qa3 {[%emt 0:00:10]} 11. Rxc5 {[%emt 0:00:00]} Nc6 {[%emt 0:00:07]} 12. Bb5 {[%emt 0:00:00]} O-O {[%emt 0:04:52]} 13. Bxc6 {[%emt 0:00:00]} bxc6 {[%emt 0:00:02]} 14. O-O {[%emt 0:00:00]} Bg4 {[%emt 0:00:12]} 15. Be3 {[%emt 0:00:00]} Qxa2 {[%emt 0:01:12]} 16. Rxc6 {[%emt 0:00:00]} Rfd8 {[%emt 0:09:00]} 17. d5 {[%emt 0:00:00]} a5 {[%emt 0:00:00]} 18. Rc7 {[%emt 0:00:00]} e6 {[%emt 0:00:00]} 19. d6 {[%emt 0:00:00]} Be5 {[%emt 0:00:00]} 20. Bc5 {[%emt 0:00:00]} Ra6 {[%emt 0:00:00]} 21. Nxe5 {[%emt 0:00:00]} Bxd1 {[%emt 0:00:00]} 22. Nxf7 {[%emt 0:00:00]} e5 {[%emt 0:00:00]} 23. Rxd1 {[%emt 0:01:17]} Qxf7 {[%emt 0:00:00]} 24. Rxf7 {[%emt 0:00:52]} Kxf7 {[%emt 0:00:00]} 25. Rb1 {[%emt 0:00:49]} Rc6 {[%emt 0:00:34]} 26. Ba3 {[%emt 0:00:33]} Rc3 {[%emt 0:00:07]} 27. Rb7+ {[%emt 0:00:24]} Kf6 {[%emt 0:00:04]} 28. Bb2 {[%emt 0:00:16]} Rxd6 {[%emt 0:00:09]} 29. h4 {[%emt 0:00:04]} Rc2 {[%emt 0:00:10]} 30. Ba3 {[%emt 0:00:09]} Rd1+ {[%emt 0:00:12]} 31. Kh2 {[%emt 0:00:04]} Rxf2 {[%emt 0:00:18]} 32. Rb6+ {[%emt 0:00:24]} Kg7 {[%emt 0:00:03]} 33. Rb7+ {[%emt 0:00:02]} Rf7 {[%emt 0:00:01]} 34. Rb5 {[%emt 0:00:04]} Rd3 {[%emt 0:00:43]} 35. Rxa5 {[%emt 0:00:08]} Rf4 {[%emt 0:00:02]} 36. Ra7+ {[%emt 0:00:24]} Kf6 {[%emt 0:00:12]} 37. Ra6+ {[%emt 0:00:03]} Kf7 {[%emt 0:00:03]} 38. Ra7+ {[%emt 0:00:06]} Ke6 {[%emt 0:00:07]} 39. Ra6+ {[%emt 0:00:04]} Kd7 {[%emt 0:00:03]} 40. Ra7+ {[%emt 0:00:29]} Kc6 {[%emt 0:00:04]} 41. Be7 {[%emt 0:00:10]} Rxe4 {[%emt 0:00:06]} 42. Bg5 {[%emt 0:00:06]} Rd7 {[%emt 0:00:12]} 43. Ra6+ {[%emt 0:00:11]} Kb5 {[%emt 0:00:02]} 44. Re6 {[%emt 0:00:06]} Re2 {[%emt 0:00:01]} 45. Kh3 {[%emt 0:00:21]} e4 {[%emt 0:00:23]} 46. g3 {[%emt 0:00:09]} Kc4 {[%emt 0:00:06]} 47. Kg4 {[%emt 0:00:10]} Kd5 {[%emt 0:00:07]} 48. Ra6 {[%emt 0:00:02]} Rf2 {[%emt 0:00:04]} 49. Ra5+ {[%emt 0:00:04]} Ke6 {[%emt 0:00:05]} 50. Bf4 {[%emt 0:00:06]} Kf7 {[%emt 0:00:25]} 51. h5 {[%emt 0:00:03]} Re7 {[%emt 0:00:06]} 52. Ra3 {[%emt 0:00:15]} gxh5+ {[%emt 0:00:23]} 53. Kxh5 {[%emt 0:00:01]} Rf3 {[%emt 0:00:01]} 54. Ra5 {[%emt 0:00:11]} e3 {[%emt 0:00:05]} 55. Ra1 {[%emt 0:00:36]} e2 {[%emt 0:00:01]} 56. Bd2 {[%emt 0:00:01]} Rd3 {[%emt 0:00:09]} 57. Be1 {[%emt 0:00:24]} Rd1 {[%emt 0:00:01]} 0-1

[Event "Asian Amateur Rapid 2024"]
[Site "Al Ain"]
[Date "2024.12.15"]
[Round "3.2"]
[White "Yahya Shuaib Al Kaff"]
[Black "Ahmad, Al Romaithi"]
[Result "0-1"]
[ECO "D26"]
[WhiteElo "1879"]
[BlackElo "1976"]
[Annotator "RC"]
[PlyCount "64"]
[EventDate "2024.12.15"]
[EventType "swiss"]
[EventCountry "UAE"]
[SourceTitle "playchess.com"]
[Source "ChessBase"]
[SourceQuality "1"]
[TimeControl "900+10"]

1. d4 {[%emt 0:00:11]} d5 {[%emt 0:00:04]} 2. c4 {[%emt 0:00:03]} dxc4 {[%emt 0:00:06]} 3. Nf3 {[%emt 0:00:08]} Nf6 {[%emt 0:00:07]} 4. e3 {[%emt 0:00:07]} e6 {[%emt 0:00:04]} 5. Bxc4 {[%emt 0:00:05]} c5 {[%emt 0:00:03]} 6. O-O {[%emt 0:00:06]} Nc6 {[%emt 0:00:12]} 7. Nc3 {[%emt 0:00:31]} cxd4 {[%emt 0:00:06]} 8. exd4 {[%emt 0:00:05]} Be7 {[%emt 0:00:21]} 9. Bf4 {[%emt 0:00:28]} O-O {[%emt 0:00:14]} 10. Rc1 {[%emt 0:01:02]} a6 {[%emt 0:00:02]} 11. a4 {[%emt 0:00:45]} Qa5 {[%emt 0:01:51]} 12. Qe2 {[%emt 0:00:45]} Re8 {[%emt 0:00:46]} 13. Rfd1 {[%emt 0:00:48]} Nb4 {[%emt 0:00:03]} 14. Ne5 {[%emt 0:01:59]} Nbd5 {[%emt 0:00:16]} 15. Bd2 {[%emt 0:04:03]} Qb6 {[%emt 0:00:21]} 16. Be1 {[%emt 0:00:50]} Bb4 {[%emt 0:01:52]} 17. Nd3 {[%emt 0:01:01]} Bd6 {[%emt 0:01:33]} 18. Nxd5 Nxd5 19. Qe4 {[%emt 0:01:35]} Nf6 {[%emt 0:01:01]} 20. Qf3 {[%emt 0:00:03]} Bd7 {[%emt 0:00:56]} 21. Ne5 {[%emt 0:00:42]} Bxa4 {[%emt 0:00:46]} 22. b3 {[%emt 0:00:54]} Bb5 {[%emt 0:00:05]} 23. g4 {[%emt 0:01:14]} Bxe5 {[%emt 0:00:44]} 24. dxe5 {[%emt 0:00:34]} Bc6 {[%emt 0:00:01]} 25. Qf4 {[%emt 0:00:53]} Nd5 {[%emt 0:00:13]} 26. Qg3 {[%emt 0:00:12]} a5 {[%emt 0:00:48]} 27. Bd3 {[%emt 0:00:10]} Nb4 {[%emt 0:00:28]} 28. Bb1 {[%emt 0:00:06]} Rad8 {[%emt 0:01:27]} 29. Qh4 {[%emt 0:00:24]} g6 {[%emt 0:00:06]} 30. Bd2 {[%emt 0:00:05]} Qd4 {[%emt 0:00:40]} 31. Rc4 {[%emt 0:00:18]} Qxe5 {[%emt 0:00:18]} 32. Re1 {[%emt 0:00:01]} Rxd2 {[%emt 0:00:00]} 0-1

[Event "Asian Amateur Rapid 2024"]
[Site "Al Ain"]
[Date "2024.12.15"]
[Round "3.3"]
[White "Rashid Husain Alhammadi"]
[Black "Umarov, Mukhammadrizo"]
[Result "1-0"]
[ECO "C11"]
[WhiteElo "1914"]
[BlackElo "1902"]
[Annotator "RC"]
[PlyCount "45"]
[EventDate "2024.12.15"]
[EventType "swiss"]
[EventCountry "UAE"]
[SourceTitle "playchess.com"]
[Source "ChessBase"]
[SourceQuality "1"]
[TimeControl "900+10"]

1. e4 {[%emt 0:00:01]} e6 {[%emt 0:00:01]} 2. d4 {[%emt 0:00:05]} d5 {[%emt 0:00:01]} 3. Nc3 {[%emt 0:00:05]} Nf6 {[%emt 0:00:01]} 4. e5 {[%emt 0:00:06]} Nfd7 {[%emt 0:00:01]} 5. Nce2 {[%emt 0:00:00]} c5 {[%emt 0:00:02]} 6. c3 {[%emt 0:00:02]} Nc6 {[%emt 0:00:01]} 7. Nf3 {[%emt 0:00:10]} a6 {[%emt 0:00:02]} 8. g3 {[%emt 0:01:37]} b5 {[%emt 0:00:02]} 9. Bg2 {[%emt 0:00:01]} b4 {[%emt 0:00:07]} 10. O-O {[%emt 0:00:10]} a5 {[%emt 0:00:03]} 11. a3 {[%emt 0:00:27]} Ba6 {[%emt 0:00:11]} 12. axb4 {[%emt 0:01:02]} axb4 {[%emt 0:00:06]} 13. Re1 {[%emt 0:01:09]} Be7 {[%emt 0:00:04]} 14. Nf4 {[%emt 0:00:12]} O-O {[%emt 0:01:50]} 15. Bh3 {[%emt 0:00:58]} Nb6 {[%emt 0:02:46]} 16. dxc5 {[%emt 0:05:56]} Bxc5 {[%emt 0:01:46]} 17. Nd4 {[%emt 0:00:05]} Bxd4 {[%emt 0:04:01]} 18. cxd4 {[%emt 0:00:02]} Kh8 {[%emt 0:04:13]} 19. Nh5 {[%emt 0:01:42]} Ne7 {[%emt 0:01:50]} 20. Bg5 {[%emt 0:01:59]} Qd7 {[%emt 0:00:44]} 21. Nxg7 {[%emt 0:00:32]} Kxg7 {[%emt 0:00:29]} 22. Bf6+ {[%emt 0:00:01]} Kg8 {[%emt 0:00:04]} 23. Qh5 {[%emt 0:00:34]} 1-0

[Event "Asian Amateur Rapid 2024"]
[Site "Al Ain"]
[Date "2024.12.15"]
[Round "3.4"]
[White "AbuAzizah, Raji"]
[Black "Saqar Essa Khamis"]
[Result "1-0"]
[ECO "B78"]
[WhiteElo "2161"]
[BlackElo "1684"]
[Annotator "RC"]
[PlyCount "69"]
[EventDate "2024.12.15"]
[EventType "swiss"]
[EventCountry "UAE"]
[SourceTitle "playchess.com"]
[Source "ChessBase"]
[SourceQuality "1"]
[TimeControl "900+10"]

1. e4 {[%emt 0:00:03]} c5 {[%emt 0:00:01]} 2. Nf3 {[%emt 0:00:01]} d6 {[%emt 0:00:01]} 3. d4 {[%emt 0:00:01]} cxd4 {[%emt 0:00:02]} 4. Nxd4 {[%emt 0:00:01]} Nf6 {[%emt 0:00:01]} 5. Nc3 {[%emt 0:00:01]} g6 {[%emt 0:00:01]} 6. Be3 {[%emt 0:00:01]} Bg7 {[%emt 0:00:01]} 7. Bc4 {[%emt 0:00:01]} O-O {[%emt 0:00:07]} 8. f3 {[%emt 0:00:01]} Nc6 {[%emt 0:00:01]} 9. Qd2 {[%emt 0:00:02]} Ne5 {[%emt 0:00:04]} 10. Bb3 {[%emt 0:00:02]} Bd7 {[%emt 0:00:01]} 11. O-O-O {[%emt 0:00:09]} Rc8 {[%emt 0:00:01]} 12. Kb1 {[%emt 0:00:13]} a6 {[%emt 0:00:05]} 13. g4 {[%emt 0:00:03]} h5 {[%emt 0:00:14]} 14. Bh6 {[%emt 0:00:44]} hxg4 {[%emt 0:01:00]} 15. Bxg7 {[%emt 0:00:07]} Kxg7 {[%emt 0:00:03]} 16. f4 {[%emt 0:00:01]} Nc4 {[%emt 0:01:04]} 17. Bxc4 {[%emt 0:00:10]} Rxc4 {[%emt 0:00:01]} 18. e5 {[%emt 0:00:01]} Nh5 {[%emt 0:00:52]} 19. Rhg1 {[%emt 0:00:20]} Qa5 {[%emt 0:01:20]} 20. Nb3 {[%emt 0:01:01]} Qc7 {[%emt 0:02:15]} 21. Nd5 {[%emt 0:00:12]} Qd8 {[%emt 0:00:13]} 22. exd6 {[%emt 0:02:30]} exd6 {[%emt 0:00:15]} 23. Na5 {[%emt 0:00:37]} Re4 {[%emt 0:01:46]} 24. Qc3+ {[%emt 0:00:24]} Kh7 {[%emt 0:00:31]} 25. h3 {[%emt 0:01:35]} g3 {[%emt 0:01:29]} 26. Rxg3 {[%emt 0:01:10]} Nxg3 {[%emt 0:01:39]} 27. Nxb7 {[%emt 0:01:36]} Qh4 {[%emt 0:01:28]} 28. Nf6+ {[%emt 0:00:14]} Kh6 {[%emt 0:01:24]} 29. Nxd7 {[%emt 0:00:05]} Rfe8 {[%emt 0:01:23]} 30. Nxd6 {[%emt 0:00:11]} Qxf4 {[%emt 0:01:17]} 31. Nf6 {[%emt 0:01:18]} Ne2 {[%emt 0:01:08]} 32. Nxf7+ {[%emt 0:00:46]} Kg7 {[%emt 0:00:01]} 33. Nh5+ {[%emt 0:00:04]} Kxf7 {[%emt 0:00:07]} 34. Qg7+ {[%emt 0:00:03]} Ke6 {[%emt 0:00:07]} 35. Qd7+ {[%emt 0:00:03]} 1-0

[Event "Asian Amateur Rapid 2024"]
[Site "Al Ain"]
[Date "2024.12.15"]
[Round "3.5"]
[White "Hamdan Edrees, Alhamed"]
[Black "Fedorov, Grigory"]
[Result "1-0"]
[ECO "A62"]
[WhiteElo "1939"]
[BlackElo "1916"]
[Annotator "RC"]
[PlyCount "75"]
[EventDate "2024.12.15"]
[EventType "swiss"]
[EventCountry "UAE"]
[SourceTitle "playchess.com"]
[Source "ChessBase"]
[SourceQuality "1"]
[TimeControl "900+10"]

1. c4 {[%emt 0:00:01]} Nf6 {[%emt 0:00:01]} 2. Nc3 {[%emt 0:00:03]} g6 {[%emt 0:00:02]} 3. g3 {[%emt 0:00:02]} Bg7 {[%emt 0:00:01]} 4. Bg2 {[%emt 0:00:01]} O-O {[%emt 0:00:03]} 5. d4 {[%emt 0:00:04]} d6 {[%emt 0:00:02]} 6. Nf3 {[%emt 0:00:03]} c5 {[%emt 0:00:06]} 7. d5 {[%emt 0:00:17]} e6 {[%emt 0:00:46]} 8. O-O {[%emt 0:00:20]} exd5 {[%emt 0:00:04]} 9. cxd5 {[%emt 0:00:05]} Bf5 {[%emt 0:01:49]} 10. Nh4 {[%emt 0:00:56]} Bd7 {[%emt 0:00:19]} 11. Bf4 {[%emt 0:00:20]} Qe7 {[%emt 0:00:42]} 12. Qd2 {[%emt 0:00:56]} Re8 {[%emt 0:00:25]} 13. Rfe1 {[%emt 0:01:18]} b5 {[%emt 0:00:21]} 14. e4 {[%emt 0:00:39]} b4 {[%emt 0:01:43]} 15. Nd1 {[%emt 0:00:02]} Ng4 {[%emt 0:03:07]} 16. Bf1 {[%emt 0:04:30]} Ne5 {[%emt 0:01:43]} 17. Kh1 {[%emt 0:00:53]} Bg4 {[%emt 0:00:23]} 18. Bg5 {[%emt 0:01:57]} Bf6 {[%emt 0:01:05]} 19. Bxf6 {[%emt 0:00:42]} Qxf6 {[%emt 0:00:01]} 20. f4 {[%emt 0:00:01]} Nf3 {[%emt 0:00:44]} 21. Nxf3 {[%emt 0:00:10]} Bxf3+ {[%emt 0:00:02]} 22. Bg2 {[%emt 0:00:01]} Bxg2+ {[%emt 0:00:20]} 23. Kxg2 {[%emt 0:00:01]} Nd7 {[%emt 0:00:12]} 24. Nf2 {[%emt 0:00:22]} h5 {[%emt 0:00:12]} 25. Nh3 {[%emt 0:01:00]} a5 {[%emt 0:00:16]} 26. Ng5 {[%emt 0:00:16]} Rac8 {[%emt 0:00:40]} 27. a3 {[%emt 0:01:05]} Nb6 {[%emt 0:00:13]} 28. axb4 {[%emt 0:00:02]} axb4 {[%emt 0:00:43]} 29. Ra7 {[%emt 0:00:10]} Nc4 {[%emt 0:00:34]} 30. Qf2 {[%emt 0:00:05]} Qxb2 {[%emt 0:00:22]} 31. Re2 {[%emt 0:00:01]} Qd4 {[%emt 0:00:08]} 32. Nxf7 {[%emt 0:01:03]} Rxe4 {[%emt 0:01:45]} 33. Nh6+ {[%emt 0:00:23]} Kf8 {[%emt 0:00:08]} 34. f5 {[%emt 0:00:04]} Qxf2+ {[%emt 0:00:58]} 35. Rxf2 {[%emt 0:00:05]} g5 {[%emt 0:00:17]} 36. f6 {[%emt 0:00:26]} Ne5 {[%emt 0:00:01]} 37. Rg7 {[%emt 0:00:21]} g4 {[%emt 0:00:39]} 38. Rg8# {[%emt 0:02:45]} 1-0

[Event "Asian Amateur Rapid 2024"]
[Site "Al Ain"]
[Date "2024.12.15"]
[Round "3.6"]
[White "Shelke Omkar"]
[Black "Soud, Jaber"]
[Result "1-0"]
[ECO "D32"]
[WhiteElo "1764"]
[BlackElo "1956"]
[Annotator "RC"]
[PlyCount "119"]
[EventDate "2024.12.15"]
[EventType "swiss"]
[EventCountry "UAE"]
[SourceTitle "playchess.com"]
[Source "ChessBase"]
[SourceQuality "1"]
[TimeControl "900+10"]

1. d4 {[%emt 0:00:02]} Nf6 {[%emt 0:01:10]} 2. c4 {[%emt 0:00:08]} e6 {[%emt 0:00:01]} 3. Nf3 {[%emt 0:00:01]} d5 {[%emt 0:00:01]} 4. Nc3 {[%emt 0:00:24]} c5 {[%emt 0:00:01]} 5. cxd5 {[%emt 0:00:38]} exd5 {[%emt 0:00:13]} 6. Bg5 {[%emt 0:00:37]} Be6 {[%emt 0:02:41]} 7. dxc5 {[%emt 0:01:35]} Bxc5 {[%emt 0:00:10]} 8. e3 {[%emt 0:00:10]} O-O {[%emt 0:00:15]} 9. Be2 {[%emt 0:00:28]} Be7 {[%emt 0:01:23]} 10. Nd4 {[%emt 0:00:52]} Nc6 {[%emt 0:00:16]} 11. O-O {[%emt 0:02:26]} h6 {[%emt 0:01:44]} 12. Bh4 {[%emt 0:00:12]} Qb6 {[%emt 0:01:09]} 13. Nxe6 {[%emt 0:02:51]} fxe6 {[%emt 0:00:02]} 14. Na4 {[%emt 0:02:34]} Qb4 {[%emt 0:02:29]} 15. Bg3 {[%emt 0:00:03]} Ne4 {[%emt 0:00:18]} 16. a3 {[%emt 0:00:29]} Qa5 {[%emt 0:00:01]} 17. Bg4 {[%emt 0:00:49]} Rf6 {[%emt 0:02:29]} 18. b4 {[%emt 0:00:12]} Qd8 {[%emt 0:00:36]} 19. b5 {[%emt 0:00:31]} Nxg3 {[%emt 0:00:22]} 20. hxg3 {[%emt 0:00:13]} Ne5 {[%emt 0:00:03]} 21. Be2 {[%emt 0:00:08]} Rc8 {[%emt 0:00:48]} 22. Qd4 {[%emt 0:00:19]} Nc4 {[%emt 0:00:57]} 23. Bxc4 {[%emt 0:01:20]} dxc4 {[%emt 0:00:09]} 24. Qxd8+ {[%emt 0:00:59]} Bxd8 {[%emt 0:00:01]} 25. Rfd1 {[%emt 0:00:07]} Rf5 {[%emt 0:00:05]} 26. Rab1 {[%emt 0:00:29]} c3 {[%emt 0:01:34]} 27. Rdc1 {[%emt 0:00:19]} Bf6 {[%emt 0:00:01]} 28. e4 {[%emt 0:00:32]} Rh5 {[%emt 0:00:33]} 29. Rb4 {[%emt 0:00:20]} a5 {[%emt 0:00:13]} 30. bxa6 {[%emt 0:00:06]} bxa6 {[%emt 0:00:01]} 31. Nb6 {[%emt 0:00:11]} Rc6 {[%emt 0:00:05]} 32. Nd7 {[%emt 0:00:06]} Be7 {[%emt 0:00:25]} 33. Rb3 {[%emt 0:00:08]} c2 {[%emt 0:00:05]} 34. e5 {[%emt 0:00:18]} Rc7 {[%emt 0:00:04]} 35. Nb8 {[%emt 0:00:07]} Rxe5 {[%emt 0:00:22]} 36. Nxa6 {[%emt 0:00:02]} Rc4 {[%emt 0:00:07]} 37. Nb4 {[%emt 0:00:19]} Rec5 {[%emt 0:00:13]} 38. Rb2 {[%emt 0:00:11]} Ra5 {[%emt 0:00:11]} 39. Rbxc2 {[%emt 0:00:08]} Rxc2 {[%emt 0:00:03]} 40. Rxc2 {[%emt 0:00:10]} Rxa3 {[%emt 0:00:04]} 41. Nc6 {[%emt 0:00:03]} Bf6 {[%emt 0:00:05]} 42. Kf1 {[%emt 0:00:18]} Kf7 {[%emt 0:00:13]} 43. Ke2 {[%emt 0:00:02]} Ke8 {[%emt 0:00:01]} 44. Nb4 {[%emt 0:00:09]} Kd7 {[%emt 0:00:11]} 45. Nd3 {[%emt 0:00:02]} Kd6 {[%emt 0:00:09]} 46. f3 {[%emt 0:00:21]} Ra1 {[%emt 0:00:28]} 47. Nf2 {[%emt 0:00:03]} Bd4 {[%emt 0:00:15]} 48. Ne4+ {[%emt 0:00:08]} Ke5 {[%emt 0:00:03]} 49. Kd3 {[%emt 0:00:19]} Rd1+ {[%emt 0:00:17]} 50. Ke2 {[%emt 0:00:03]} Rg1 {[%emt 0:00:03]} 51. Kd3 {[%emt 0:00:01]} Rd1+ {[%emt 0:00:01]} 52. Ke2 {[%emt 0:00:02]} Ra1 {[%emt 0:00:01]} 53. Kd3 {[%emt 0:00:02]} Ra3+ {[%emt 0:00:02]} 54. Kd2 {[%emt 0:00:11]} Ra7 {[%emt 0:00:12]} 55. Kd3 {[%emt 0:00:15]} Ra3+ {[%emt 0:00:04]} 56. Kc4 {[%emt 0:00:03]} g5 {[%emt 0:00:39]} 57. Re2 {[%emt 0:00:11]} Re3 {[%emt 0:00:11]} 58. Ra2 {[%emt 0:00:02]} Bb6 {[%emt 0:00:14]} 59. Rb2 {[%emt 0:00:14]} Ba7 {[%emt 0:00:26]} 60. Rb5+ {[%emt 0:00:12]} 1-0

[Event "Asian Amateur Rapid 2024"]
[Site "Al Ain"]
[Date "2024.12.15"]
[Round "3.7"]
[White "Mujahid Bin Yazeed"]
[Black "Muhammad Shayan Noushad Ibrahi"]
[Result "1-0"]
[ECO "B23"]
[WhiteElo "1837"]
[BlackElo "1716"]
[Annotator "NA RC"]
[PlyCount "69"]
[EventDate "2024.12.15"]
[EventType "swiss"]
[EventCountry "UAE"]
[SourceTitle "playchess.com"]
[Source "ChessBase"]
[SourceQuality "1"]
[TimeControl "900+10"]

1. e4 {[%emt 0:00:06]} c5 {[%emt 0:00:01]} 2. Nc3 {[%emt 0:00:06]} e6 {[%emt 0:00:13]} 3. a3 {[%emt 0:00:34]} d5 {[%emt 0:00:09]} 4. Bb5+ {[%emt 0:00:49]} Nc6 {[%emt 0:00:08]} 5. d3 {[%emt 0:00:12]} Nge7 {[%emt 0:00:47]} 6. Nge2 {[%emt 0:01:06]} d4 {[%emt 0:00:17]} 7. Bxc6+ {[%emt 0:00:03]} Nxc6 {[%emt 0:00:04]} 8. Nb1 {[%emt 0:00:05]} e5 {[%emt 0:00:29]} 9. O-O {[%emt 0:00:15]} Be7 {[%emt 0:00:18]} 10. f4 {[%emt 0:01:13]} exf4 {[%emt 0:00:41]} 11. Nxf4 {[%emt 0:00:26]} Ne5 {[%emt 0:00:28]} 12. h3 {[%emt 0:00:52]} O-O {[%emt 0:00:27]} 13. Nd5 {[%emt 0:00:37]} Be6 {[%emt 0:01:07]} 14. Nxe7+ {[%emt 0:00:31]} Qxe7 {[%emt 0:00:02]} 15. Qh5 {[%emt 0:02:09]} Ng6 {[%emt 0:00:54]} 16. b3 {[%emt 0:00:31]} f5 {[%emt 0:03:05]} 17. Bg5 {[%emt 0:00:15]} Qd6 {[%emt 0:00:11]} 18. Nd2 {[%emt 0:00:12]} Rae8 {[%emt 0:01:51]} 19. Rae1 {[%emt 0:01:58]} Bf7 {[%emt 0:02:13]} 20. exf5 {[%emt 0:02:03]} Rxe1 {[%emt 0:00:10]} 21. Rxe1 {[%emt 0:00:03]} Qg3 {[%emt 0:00:26]} 22. Rf1 {[%emt 0:00:32]} Bd5 {[%emt 0:02:05]} 23. Ne4 {[%emt 0:00:19]} Bxe4 {[%emt 0:00:51]} 24. dxe4 {[%emt 0:00:02]} Nh8 {[%emt 0:00:15]} 25. Bf4 {[%emt 0:00:54]} Qc3 {[%emt 0:00:04]} 26. Bd6 {[%emt 0:01:06]} Rf7 {[%emt 0:01:23]} 27. Qe2 {[%emt 0:00:56]} g6 {[%emt 0:00:41]} 28. f6 {[%emt 0:00:48]} Qa5 {[%emt 0:00:13]} 29. e5 {[%emt 0:00:11]} Qd8 {[%emt 0:00:14]} 30. Qc4 {[%emt 0:00:15]} b6 {[%emt 0:00:07]} 31. Be7 {[%emt 0:00:13]} Qc7 {[%emt 0:00:07]} 32. e6 {[%emt 0:00:09]} Rxe7 {[%emt 0:00:03]} 33. fxe7 {[%emt 0:00:07]} Qxe7 {[%emt 0:00:02]} 34. Qd5 {[%emt 0:00:04]} h6 {[%emt 0:00:18]} 35. Qd7 {[%emt 0:00:08]} 1-0